{"text_format":"1","workbook":"xlsx","n_sheets":6,"sheets":["(重要)必読","事業参加者申込書 様式１号","別紙１(R８) ","別紙2(R７) ","(別添1)申告書","(別添2)同意書"],"not_rendered":{"charts":0,"images":2,"macros":1,"external_links":0,"defined_names":20,"comments":0,"pivot_tables":0},"unopened":[],"bounds":{"document_bytes":16777216,"sheet_cells":100000,"rows_first":2000,"rows_last":500,"rows_between":2000,"halvings":0,"cell_chars":16384,"cell_head_chars":4096},"cells_cut":0,"cells_raw":0,"read":"whole","date_system":"1900"}

{"sheet":"(重要)必読","index":0,"n_rows":32,"n_cols":3,"rows_kept":32,"cut":false,"hidden":false,"merged":[[78,0,78,9],[59,0,59,1],[59,2,60,9],[62,0,62,1],[62,2,62,6],[63,2,64,9],[66,0,66,1],[66,2,66,8],[26,0,26,1],[26,2,29,9],[31,0,31,1],[31,2,34,9],[56,0,56,1],[56,2,57,9],[13,0,13,1],[13,2,15,9],[17,0,17,1],[17,2,19,9],[21,0,21,1],[21,2,24,9],[8,0,8,1],[8,2,11,9],[0,0,0,2],[1,2,1,9],[2,2,2,9],[4,0,4,1],[4,2,6,9]]}
["【重要】"]
[null,null,"令和8年度 安定的な国産飼料供給支援"]
[null,null,"事業参加に当たってのお知らせ"]
[]
["1.",null,"本年度は予算額を上回る事業参加が予想されますため、６月に事業参加申込いただき、申込額と予算額を基に予算割当を行います。"]
[]
[]
[]
["2.",null,"この場合、事業実施要領に基づき新規拡大分（１２千円以内の対象）が優先採択されますので、拡大継続分（５千円以内の対象）は補助対象から外れることがあり得ます。"]
[]
[]
[]
[]
["3.",null,"このため、拡大継続分のみの場合、関係書類を揃えて事業参加申込いただいても予算割当できないことがある旨ご承知おきください。"]
[]
[]
[]
["4.",null,"また、申込額の状況によっては、新規拡大分、拡大継続分に関わらず、補助額について一定の削減を行い予算割当することもあります。"]
[]
[]
[]
["5.",null,"一方、現時点では全く想定できませんが、仮に国において予算の追加が行われることがあった場合は、その時期及び額によりますが、補助対象外となった分も一部対象になる可能性があります。"]
[]
[]
[]
[]
["6.",null,"この場合、改めての事業参加募集は行わず、６月の事業参加申込者の不足分に充当いたしますので、６月に事業参加されていない者は補助対象外となります。"]
[]
[]
[]
[]
["7.",null,"以上の事情を十分に斟酌いただき、事業参加申込の有無のご決定をお願いいたします。"]

{"sheet":"事業参加者申込書 様式１号","index":1,"n_rows":129,"n_cols":27,"rows_kept":129,"cut":false,"hidden":false,"merged":[[30,1,30,29],[31,1,31,29],[52,1,52,29],[62,1,63,27],[128,3,128,6],[128,8,128,25],[115,3,115,6],[115,8,115,25],[117,1,117,6],[117,8,119,25],[124,3,124,6],[124,8,124,25],[126,3,126,6],[62,28,63,29],[94,0,94,1],[90,0,90,1],[106,8,106,25],[108,1,108,6],[126,8,126,25],[113,3,113,6],[113,8,113,25],[111,3,111,6],[111,8,111,25],[109,3,109,6],[109,8,109,25],[106,1,106,6],[99,0,100,1],[78,3,78,7],[80,16,80,18],[104,1,104,6],[104,8,104,10],[91,0,92,1],[98,0,98,1],[84,0,84,1],[95,0,96,1],[104,11,104,12],[104,14,104,15],[86,0,88,1],[85,0,85,1],[76,21,76,25],[76,26,76,27],[78,21,78,25],[78,26,78,27],[104,23,104,24],[79,25,79,26],[80,20,80,24],[80,25,80,26],[99,3,100,29],[82,20,82,24],[91,3,92,29],[82,25,82,26],[95,3,96,29],[104,20,104,21],[55,5,56,11],[55,15,56,21],[59,1,59,27],[59,28,60,29],[38,1,39,29],[45,1,45,29],[46,1,47,29],[60,1,60,27],[50,19,51,25],[50,1,51,18],[33,1,33,29],[42,19,43,25],[37,1,37,29],[34,19,35,25],[34,1,35,18],[42,1,43,18],[26,19,27,25],[11,7,11,26],[17,8,17,10],[21,0,21,4],[21,5,22,29],[19,0,19,4],[26,1,27,18],[66,7,67,13],[66,19,67,25],[71,10,72,16],[72,17,72,18],[2,0,3,29],[6,1,6,6],[6,7,6,26],[9,1,9,6],[9,7,9,26],[7,1,8,6],[7,7,8,26],[19,5,20,29],[10,1,10,6],[10,7,10,26],[11,1,11,6],[29,1,29,29]]}
["別記様式第１号（第２関係）"]
[]
["国産飼料生産・利用拡大緊急対策事業参加申込書\n（飼料生産組織の運営強化支援事業のうち飼料生産組織による安定的な国産飼料供給支援）"]
[]
[]
["Ⅰ","事業参加申込者の名称"]
[null,"飼料生産組織名"]
[null,"所在地"]
[]
[null,"代表者氏名"]
[null,"連絡先電話番号"]
[null,"メールアドレス"]
[null,"※","連絡先電話番号は、日中に連絡が取れるものを記載してください。"]
[]
["Ⅱ","事業の内容及び計画"]
[{"$f":"DBCS(1)","v":"１"},"類型"]
["（供給契約と作業受託契約のどちらも行う併用の場合は、両方にチェックをすること。）"]
[null,null,null,null,null,null,null,null,"供給契約",null,null,null,null,null,null,"作業受託契約"]
["（参　考）"]
["供給契約　　：",null,null,null,null,"　飼料生産組織が畜産農家等に対し、当該組織が飼料の生産・稲わらの収集等を行い供給する契約をいう。"]
[]
["作業受託契約：",null,null,null,null,"　飼料生産組織が畜産農家等から、当該農家等が飼料の生産・稲わらの収集等の作業を受託する契約をいう。"]
[]
[]
[{"$f":"DBCS(2)","v":"２"},"Ｒ８（事業実施年度）の飼料生産販売・作業受託計画（必須）",null,null,null,null,null,null,null,null,null,null,null,null,null,null,null,null,null,"※","自動入力"]
["※","面積を算出するために別紙１を作成し、事業参加申込書に添付すること。"]
[null,"①Ｒ８飼料作物収穫等延べ面積（２作目面積も含む）",null,null,null,null,null,null,null,null,null,null,null,null,null,null,null,null,null,{"$f":"'別紙１(R８) '!D4","v":0}]
[null,null,null,null,null,null,null,null,null,null,null,null,null,null,null,null,null,null,null,null,null,null,null,null,null,null,"(ａ)"]
[]
[{"$f":"DBCS(3)","v":"３"},"Ｒ７の飼料生産販売・作業受託に係る面積（必須）"]
["※","Ｒ７事業参加の飼料生産組織は、Ｒ７事業の事業参加申込書に記載した計画面積を入力すること。"]
[null,"別紙２の作成は不要とする。"]
["※","Ｒ８に初めて事業参加する飼料生産組織は、実績面積を入力すること。"]
[null,"また、面積を算出するために別紙２を作成し、申込書に添付すること。"]
[null,"②Ｒ７飼料作物収穫等延べ面積（２作目面積も含む）"]
[null,null,null,null,null,null,null,null,null,null,null,null,null,null,null,null,null,null,null,null,null,null,null,null,null,null,"(ａ)"]
[]
[{"$f":"DBCS(4)","v":"４"},"Ｒ６の飼料生産販売・作業受託に係る面積"]
["※","Ｒ６事業参加の飼料生産組織は、Ｒ６事業の補助金交付申請書に記載した計画面積を入力すること。"]
[]
["※","Ｒ７事業から事業参加した飼料生産組織は、実績面積を入力すること。"]
["※","Ｒ８事業に初めて事業参加する飼料生産組織は、空欄とすること。"]
[null,"③Ｒ６飼料作物収穫等延べ面積（２作目面積も含む）"]
[null,null,null,null,null,null,null,null,null,null,null,null,null,null,null,null,null,null,null,null,null,null,null,null,null,null,"(ａ)"]
[]
[{"$f":"DBCS(5)","v":"５"},"Ｒ５の飼料生産販売・作業受託に係る面積"]
["※","Ｒ５事業参加の飼料生産組織は、Ｒ５事業の補助金交付申請書に記載した計画面積を入力すること。"]
[]
["※","Ｒ６事業から事業参加した飼料生産組織は、実績面積を入力すること。"]
["※","Ｒ７またはＲ８事業に初めて事業参加する飼料生産組織は、空欄とすること。"]
[null,"④Ｒ５飼料作物収穫等延べ面積（２作目面積も含む）"]
[null,null,null,null,null,null,null,null,null,null,null,null,null,null,null,null,null,null,null,null,null,null,null,null,null,null,"(ａ)"]
[]
[{"$f":"DBCS(6)","v":"６"},"Ｒ８に拡大する飼料生産販売・作業受託予定面積",null,null,null,null,null,null,null,null,null,null,null,null,null,null,"※","自動入力"]
["（Ａ：新規拡大面積）",null,null,null,null,null,null,null,null,null,null,null,null,null,"（Ｂ：拡大継続面積）"]
[null,null,null,null,null,{"$f":"IF(T27<T35,0,(T27-MAX(T35,T43)))","v":0},null,null,null,null,null,null,null,null,null,{"$f":"IF(T43=0,0,IF(T35<IF(AND(T51<>\"\",T43<T51),T51,T43),0,IF(AND(T27<T35,T27>IF(AND(T51<>\"\",T43<T51),T51,T43)),T27-IF(AND(T51<>\"\",T43<T51),T51,T43),IF(T27>T35,T35-IF(AND(T51<>\"\",T43<T51),T51,T43),0))))","v":0}]
[null,null,null,null,null,null,null,null,null,null,null,null,"(ａ)",null,null,null,null,null,null,null,null,null,"(ａ)"]
[null,null,null,null,null,null,null,null,null,null,null,null,null,null,null,"（Ｒ８新規の場合、本欄は0.00）"]
[]
["※","　拡大分に、５年以上の長期契約外（販売先未定、契約は結んでいるが５年未満の短期契約"]
[null,"等）が含まれる場合にチェックすること。"]
[]
["※","　事業参加要件として、Ｒ７事業参加の飼料生産組織は上記の２①が４③から10%以上拡大していること、Ｒ８に初めて事業参加する飼料生産組織は２①が３②から10%以上拡大していること確認しチェックすること。"]
[]
[]
[null,null,"※","自動入力"]
[null,null,"基準面積の10％",null,null,null,null,{"$f":"IF(T43=\"\",T35*10%,IF(AND(T51<>\"\",T43<T51),T51*10%,T43*10%))","v":0},null,null,null,null,null,null,null,null,null,null,null,{"$f":"IF(H67=0,\"\",IF(T43=\"\",IF(T27>=T35*1.1,\"事業参加可\",\"事業参加不可\"),IF(AND(T51<>\"\",T43<T51),IF(T27>=T51*1.1,\"事業参加可\",\"事業参加不可\"),IF(T27>=T43*1.1,\"事業参加可\",\"事業参加不可\"))))","v":""}]
[null,null,null,null,null,null,null,null,null,null,null,null,null,null,"(ａ)"]
[]
[]
[{"$f":"DBCS(7)","v":"７"},"事業参加申込額",null,null,null,null,"（【申込額計算】合計と同額を入力すること）"]
[]
[null,null,null,null,null,null,null,null,null,null,null,null,null,null,null,null,null,"千円",null,"以内"]
["※","予算の範囲内で補助金の割当を行うため、申込額満額の補助金交付とならないことがあります。"]
[null,null,"【申込額計算】",null,null,null,null,"※ 自動入力"]
[]
[null,null,null,"新規拡大分：",null,null,null,null,"（Ａ）",null,null,"10a未満切り捨て×12,000円/10a＝",null,null,null,null,null,null,null,null,null,{"$f":"(ROUNDDOWN(F56,-1)*12000/10)/1000","v":0},null,null,null,null,"千円"]
[]
[null,null,null,"拡大継続分：",null,null,null,null,"（Ｂ）",null,null,"10a未満切り捨て× 5,000円/10a＝",null,null,null,null,null,null,null,null,null,{"$f":"(ROUNDDOWN(P56,-1)*5000/10)/1000","v":0},null,null,null,null,"千円"]
[]
[null,null,null,null,null,null,null,null,null,null,null,null,null,null,null,null,"合　計",null,null,null,{"$f":"V77+V79","v":0},null,null,null,null,"千円"]
[]
[]
["８　確認事項"]
[null,null,"●","配合飼料価格安定制度への継続加入"]
["チェック",null,null,"　該当するものにチェックすること　　　　　"]
[null,null,null,"継続する　"]
[null,null,null,"継続しない"]
[null,null,null,"該当しない（畜産農家ではない等）"]
[]
["チェック",null,"●","「環境負荷低減のチェックシート」の実施"]
[null,null,null,"　「環境負荷低減のチェックシート」に基づく生産活動を実施していること。"]
[]
[]
["チェック",null,"●","自然災害等のリスクに備えるためのチェックリストと農業版ＢＣＰ"]
[null,null,null,"　自然災害等のリスクに備えるためのチェックリストに基づく確認又は農業版ＢＣＰ（事業継続計画）の策定を行っている場合はチェックする。"]
[]
[]
["チェック",null,"●","労働環境改善への取組"]
[null,null,null,"　適用基準を満たす者にあっては、雇用保険及び労働者災害補償保険の労働保険に加入させていること。（法人にあっては、厚生年金保険及び健康保険に加入させること。）"]
[]
[]
["９　補助金交付申請書の市町村への説明・共有の状況"]
[]
[null,"１．日　　　　時",null,null,null,null,null,null,"令和８年",null,null,null,null,"月",null,null,"日","（",null,"）",null,null,"時",null,null,"分"]
[]
[null,"２．場　　　　所"]
[]
[null,"３．市町村担当者"]
[null,null,null,"所　属："]
[]
[null,"　",null,"氏　名："]
[]
[null,"　",null,"ＴＥＬ："]
[]
[null,null,null,"メール："]
[]
[null,"４．内　　　　容"]
[]
[]
[]
["10　補助金交付申請書の市町村への説明・共有の状況","窓口担当者"]
["※","当会からの確認連絡窓口となる飼料生産組織における担当者様情報を記載すること。"]
[]
[null,null,null,"氏　名："]
[]
[null,null,null,"ＴＥＬ："]
[]
[null,null,null,"メール："]

{"sheet":"別紙１(R８) ","index":2,"n_rows":220,"n_cols":8,"rows_kept":220,"cut":false,"hidden":false,"merged":[[3,3,4,4],[109,0,109,2],[109,3,109,4],[216,0,216,2],[216,3,216,4]]}
["別紙１：参加申込用"]
["２　事業実施年度（令和８年度）の飼料生産販売・作業受託計画"]
[]
[null,null,"別紙１の総計",{"$f":"D110+D217","v":0}]
[null,null,"（※自動入力）",null,null,"ａ"]
[]
["【供給契約】※供給契約がない場合は空欄とすること。"]
["付番","所在地（番地）","販売先農家","1作目面積\n（a）","2作目面積\n（a）","1作目飼料作物名","2作目飼料作物名","確認等書類\n名称"]
["K1"]
["K2"]
["K3"]
["K4"]
["K5"]
["K6"]
["K7"]
["K8"]
["K9"]
["K10"]
["K11"]
["K12"]
["K13"]
["K14"]
["K15"]
["K16"]
["K17"]
["K18"]
["K19"]
["K20"]
["K21"]
["K22"]
["K23"]
["K24"]
["K25"]
["K26"]
["K27"]
["K28"]
["K29"]
["K30"]
["K31"]
["K32"]
["K33"]
["K34"]
["K35"]
["K36"]
["K37"]
["K38"]
["K39"]
["K40"]
["K41"]
["K42"]
["K43"]
["K44"]
["K45"]
["K46"]
["K47"]
["K48"]
["K49"]
["K50"]
["K51"]
["K52"]
["K53"]
["K54"]
["K55"]
["K56"]
["K57"]
["K58"]
["K59"]
["K60"]
["K61"]
["K62"]
["K63"]
["K64"]
["K65"]
["K66"]
["K67"]
["K68"]
["K69"]
["K70"]
["K71"]
["K72"]
["K73"]
["K74"]
["K75"]
["K76"]
["K77"]
["K78"]
["K79"]
["K80"]
["K81"]
["K82"]
["K83"]
["K84"]
["K85"]
["K86"]
["K87"]
["K88"]
["K89"]
["K90"]
["K91"]
["K92"]
["K93"]
["K94"]
["K95"]
["K96"]
["K97"]
["K98"]
["K99"]
["K100"]
["計",null,null,{"$f":"SUM(D9:D108)","v":0},{"$f":"SUM(E9:E108)","v":0}]
["総計",null,null,{"$f":"D109+E109","v":0}]
["※","件数によって適宜、行の追加又は削除をすること。"]
[null,"行の追加又は削除をした場合は、計及び総計が正しく反映されているかを確認すること。"]
["※","提出する確認等書類の該当箇所に一致する付番を記載すること。"]
["【作業受託契約】※作業受託契約がない場合は空欄とすること。"]
["付番","所在地（番地）","委託契約先農家","1作目面積\n（a）","2作目面積\n（a）","1作目飼料作物名","2作目飼料作物名","確認等書類\n名称"]
["S1"]
["S2"]
["S3"]
["S4"]
["S5"]
["S6"]
["S7"]
["S8"]
["S9"]
["S10"]
["S11"]
["S12"]
["S13"]
["S14"]
["S15"]
["S16"]
["S17"]
["S18"]
["S19"]
["S20"]
["S21"]
["S22"]
["S23"]
["S24"]
["S25"]
["S26"]
["S27"]
["S28"]
["S29"]
["S30"]
["S31"]
["S32"]
["S33"]
["S34"]
["S35"]
["S36"]
["S37"]
["S38"]
["S39"]
["S40"]
["S41"]
["S42"]
["S43"]
["S44"]
["S45"]
["S46"]
["S47"]
["S48"]
["S49"]
["S50"]
["S51"]
["S52"]
["S53"]
["S54"]
["S55"]
["S56"]
["S57"]
["S58"]
["S59"]
["S60"]
["S61"]
["S62"]
["S63"]
["S64"]
["S65"]
["S66"]
["S67"]
["S68"]
["S69"]
["S70"]
["S71"]
["S72"]
["S73"]
["S74"]
["S75"]
["S76"]
["S77"]
["S78"]
["S79"]
["S80"]
["S81"]
["S82"]
["S83"]
["S84"]
["S85"]
["S86"]
["S87"]
["S88"]
["S89"]
["S90"]
["S91"]
["S92"]
["S93"]
["S94"]
["S95"]
["S96"]
["S97"]
["S98"]
["S99"]
["S100"]
["計",null,null,{"$f":"SUM(D116:D215)","v":0},{"$f":"SUM(E116:E215)","v":0}]
["総計",null,null,{"$f":"D216+E216","v":0}]
["※","件数によって適宜、行の追加又は削除をすること。"]
[null,"行の追加又は削除をした場合は、計及び総計が正しく反映されているかを確認すること。"]
["※","提出する確認等書類の該当箇所に一致する付番を記載すること。"]

{"sheet":"別紙2(R７) ","index":3,"n_rows":222,"n_cols":8,"rows_kept":222,"cut":false,"hidden":false,"merged":[[218,0,218,2],[218,3,218,4],[1,1,1,31],[2,1,2,31],[3,1,3,31],[5,3,6,4],[111,0,111,2],[111,3,111,4]]}
["別紙２：参加申込用"]
[{"$f":"DBCS(3)","v":"３"},"Ｒ７の飼料生産販売・作業受託に係る実績"]
["※","Ｒ８に初めて事業参加する飼料生産組織は、本表を作成のうえ申込書に添付すること。"]
[null,"（Ｒ７以前に事業参加した飼料生産組織は、本表の作成および提出は不要）"]
[]
[null,null,"別紙２の総計",{"$f":"D112+D219","v":0}]
[null,null,"（※自動入力）",null,null,"ａ"]
[]
["【供給契約】※供給契約がない場合は空欄とすること。"]
["付番","所在地（番地）","販売先農家","1作目面積\n（a）","2作目面積\n（a）","1作目飼料作物名","2作目飼料作物名","確認等書類\n名称"]
["K1"]
["K2"]
["K3"]
["K4"]
["K5"]
["K6"]
["K7"]
["K8"]
["K9"]
["K10"]
["K11"]
["K12"]
["K13"]
["K14"]
["K15"]
["K16"]
["K17"]
["K18"]
["K19"]
["K20"]
["K21"]
["K22"]
["K23"]
["K24"]
["K25"]
["K26"]
["K27"]
["K28"]
["K29"]
["K30"]
["K31"]
["K32"]
["K33"]
["K34"]
["K35"]
["K36"]
["K37"]
["K38"]
["K39"]
["K40"]
["K41"]
["K42"]
["K43"]
["K44"]
["K45"]
["K46"]
["K47"]
["K48"]
["K49"]
["K50"]
["K51"]
["K52"]
["K53"]
["K54"]
["K55"]
["K56"]
["K57"]
["K58"]
["K59"]
["K60"]
["K61"]
["K62"]
["K63"]
["K64"]
["K65"]
["K66"]
["K67"]
["K68"]
["K69"]
["K70"]
["K71"]
["K72"]
["K73"]
["K74"]
["K75"]
["K76"]
["K77"]
["K78"]
["K79"]
["K80"]
["K81"]
["K82"]
["K83"]
["K84"]
["K85"]
["K86"]
["K87"]
["K88"]
["K89"]
["K90"]
["K91"]
["K92"]
["K93"]
["K94"]
["K95"]
["K96"]
["K97"]
["K98"]
["K99"]
["K100"]
["計",null,null,{"$f":"SUM(D11:D110)","v":0},{"$f":"SUM(E11:E110)","v":0}]
["総計",null,null,{"$f":"D111+E111","v":0}]
["※","件数によって適宜、行の追加又は削除をすること。"]
[null,"行の追加又は削除をした場合は、計及び総計が正しく反映されているかを確認すること。"]
["※","提出する確認等書類の該当箇所に一致する付番を記載すること。"]
["【作業受託契約】※作業受託契約がない場合は空欄とすること。"]
["付番","所在地（番地）","委託契約先農家","1作目面積\n（a）","2作目面積\n（a）","1作目飼料作物名","2作目飼料作物名","確認等書類\n名称"]
["S1"]
["S2"]
["S3"]
["S4"]
["S5"]
["S6"]
["S7"]
["S8"]
["S9"]
["S10"]
["S11"]
["S12"]
["S13"]
["S14"]
["S15"]
["S16"]
["S17"]
["S18"]
["S19"]
["S20"]
["S21"]
["S22"]
["S23"]
["S24"]
["S25"]
["S26"]
["S27"]
["S28"]
["S29"]
["S30"]
["S31"]
["S32"]
["S33"]
["S34"]
["S35"]
["S36"]
["S37"]
["S38"]
["S39"]
["S40"]
["S41"]
["S42"]
["S43"]
["S44"]
["S45"]
["S46"]
["S47"]
["S48"]
["S49"]
["S50"]
["S51"]
["S52"]
["S53"]
["S54"]
["S55"]
["S56"]
["S57"]
["S58"]
["S59"]
["S60"]
["S61"]
["S62"]
["S63"]
["S64"]
["S65"]
["S66"]
["S67"]
["S68"]
["S69"]
["S70"]
["S71"]
["S72"]
["S73"]
["S74"]
["S75"]
["S76"]
["S77"]
["S78"]
["S79"]
["S80"]
["S81"]
["S82"]
["S83"]
["S84"]
["S85"]
["S86"]
["S87"]
["S88"]
["S89"]
["S90"]
["S91"]
["S92"]
["S93"]
["S94"]
["S95"]
["S96"]
["S97"]
["S98"]
["S99"]
["S100"]
["計",null,null,{"$f":"SUM(D118:D217)","v":0},{"$f":"SUM(E118:E217)","v":0}]
["総計",null,null,{"$f":"D218+E218","v":0}]
["※","件数によって適宜、行の追加又は削除をすること。"]
[null,"行の追加又は削除をした場合は、計及び総計が正しく反映されているかを確認すること。"]
["※","提出する確認等書類の該当箇所に一致する付番を記載すること。"]

{"sheet":"(別添1)申告書","index":4,"n_rows":66,"n_cols":31,"rows_kept":66,"cut":false,"hidden":false,"merged":[[59,2,60,30],[62,2,64,30],[38,2,44,30],[45,2,46,30],[48,2,48,30],[50,2,54,30],[55,2,57,30],[36,2,37,30],[0,0,1,5],[2,0,3,30],[5,0,7,30],[10,10,11,14],[10,15,11,30],[12,10,13,14],[12,15,13,30],[15,0,15,30],[17,2,20,30],[22,2,22,30],[23,2,23,30],[25,2,28,30],[29,2,30,30],[32,2,35,30]]}
["別添１"]
[]
["事業参加申込に係る申告書"]
[]
[]
["　事業の参加申込を行うに当たり、下記の内容に間違いないことを申告します。なお、補助金の交付を受けた後において本申告に誤りがあることが判明した場合は、本申告の14.の規定に基づき、補助金を返還いたします。"]
[]
[]
[null,null,null,null,null,null,null,null,null,null,null,null,null,null,null,null,null,null,null,null,null,null,null,"令和８年",null,null,null,"月",null,null,"日"]
[null,null,null,null,null,null,null,null,null,null,null,null,null,null,null,"（署名もしくは記名押印）"]
[null,null,null,null,null,null,null,null,null,null,"飼料生産組織名："]
[]
[null,null,null,null,null,null,null,null,null,null,"代表者氏名　　："]
[]
[]
["記"]
["※各項目確認後はチェックボックスにチェックをつけてください。"]
[null,"１.","　国産飼料生産・利用拡大緊急対策事業実施要領（令和8年1月13日付け7畜産第2290号農林水産省畜産局通知、以下「実施要領」という。）別紙１-３の飼料生産組織の運営強化支援のうち飼料生産組織による安定的な国産飼料供給支援の事業細目及び具体的な手続等についてをよく読み、事業の趣旨や内容をよく理解し、自ら作成した実施計画に基づき取組を実施する。"]
[]
[]
[]
[]
[null,"２.","　国産飼料生産・利用拡大緊急対策事業補助金交付等要綱に係る運用について（令和8年4月23日付け8日草種協第47号一般社団法人日本草地畜産種子協会会長通知（以下「運用」という。）の別紙様式第１から４号の国産飼料生産・利用拡大緊急対策事業参加申込書等の内容に変更があった場合は、速やかに申し出る。"]
[null,"３.","　国産飼料生産・利用拡大緊急対策事業交付等要綱（令和8年1月13日付け7畜産第2226号農林水産事務次官依命通知、以下「交付等要綱」という。）別表の１の(１)に掲げる事業実施主体（飼料生産組織）の要件を満たしている。"]
[]
[null,"４.","（R8に初めて事業に参加する飼料生産組織であって、前年度（R7）の飼料生産販売・作業受託の実績面積が0の場合）\n　飼料の生産・販売、作業受託の合計売上高が農業（畜産を含む。）又はその関連事業の売上高の５％以上を占めている。"]
[]
[]
[]
[null,"５.","　運用別記様式第4号の実績報告書の１の「R8に拡大した飼料生産販売・作業受託面積(拡大継続面積を含む)」については、土壌分析および飼料分析を実施し、その結果を提出する。"]
[]
[]
[null,"６.","（R8に初めて事業に参加する飼料生産組織の場合）\n　運用別記様式第1号の事業参加申込書の３の「R7飼料生産販売・作業受託面積」の「②R7飼料作物収穫等延べ面積」には、事業開始年度の前年度（R7）に収穫等を実施した全てのほ場を漏れなく記載している。また、面積は小数点の切り上げ、切り捨てを行わずに記載している。さらに、当該面積には、草地更新作業のみを実施した面積は含まない。"]
[]
[]
[]
[null,"７.","　運用別記様式第1号の事業参加申込書の２の「R8の飼料生産販売・作業受託計画」の「①R8飼料作物収穫等延べ面積」には、他の飼料生産組織が実施した収穫等作業面積を含まない。"]
[]
[null,"８.","　運用別記様式第1号の事業参加申込書の６の「R8に拡大する飼料生産販売・作業受託予定面積」は、以下を満たしている。\nア.飼料生産組織が事業開始年度の前年度（R7）に収穫等を行った面積を含まない。\nイ.当該面積は拡大した収穫等作業面積であり、単に飼料生産組織の供給先や作業受託先を変更した面積（拡大に該当しない）は含まない。\nウ.当該面積は、他の飼料生産組織が実施した収穫等作業面積は含まない。\nエ.上記のほか、「国産飼料生産・利用拡大緊急対策事業 飼料生産組織の運営強化支援のうち飼料生産組織による安定的な国産飼料供給支援事業概要（令和8年4月）」P.23の類型に該当していない。"]
[]
[]
[]
[]
[]
[]
[null,"９．","　運用別記様式第1号の別紙１に記載しているほ場は、すべて農業委員会等公的機関の指導方針に沿って適正に権利関係が担保されており、飼料生産組織が収穫等作業を行う上で問題のない土地である。"]
[]
[]
[null,"10.","　本事業への参加に当たっては、飼料生産組織の構成員以外を対象とした飼料生産・販売、作業受委託に努めている。"]
[]
[null,"11.","　事業実施主体（一般社団法人日本草地畜産種子協会）及び事業実施主体が業務を委託している団体等（以下「事業実施主体等」という。）による参加申込書、補助金交付申請書及び実績報告書等の受理後の内容の確認及び飼料作物収穫延べ面積等の取組確認等に協力する。\n事業実施主体等からの問合せ等について、特段の事情（災害等）がないにもかかわらず、おおむね３週間以内に当該資料を提出等できなかった場合は、事業への参加を取り下げたとみなされても差支えない。"]
[]
[]
[]
[]
[null,"12.","　事業実施主体等に提出した事業参加申込書や実績報告書、それらの基礎となった証拠書類又は証拠物を事業実施翌年度から５年間保管するとともに、農林水産本省、地方農政局（北海道にあっては北海道農政事務所、沖縄県にあっては内閣府沖縄総合事務局をいう。以下同じ。）及び取組確認等を実施する事業実施主体等からの求めに応じて提供する。"]
[]
[]
[]
[null,"13.","　本事業に係る補助金の交付を受けた後に実施される事業実施主体等による取組確認等の対象となった場合は、その取組確認等の実施に協力する。"]
[]
[]
[null,"14.","　本事業に係る補助金の交付を受けた後に補助金の交付要件を満たさないことが判明した場合、取組確認や現地確認を拒否した場合、交付等要綱、実施要領及び運用等に違反した場合には、補助金を返還する。虚偽の申請や交付等要綱等に違反した場合は、その後の本事業への申請を行わない。"]
[]
[]
[null,null,null,null,null,null,null,null,null,null,null,null,null,null,null,null,null,null,null,null,null,null,null,null,null,null,null,null,"以　上"]

{"sheet":"(別添2)同意書","index":5,"n_rows":31,"n_cols":9,"rows_kept":31,"cut":false,"hidden":false,"merged":[[30,0,31,5],[30,6,31,23],[0,0,1,5],[15,0,15,1],[15,2,17,23],[23,0,23,2],[23,3,23,4],[23,6,23,7],[12,0,12,1],[2,0,3,23],[12,2,13,23],[7,2,10,23],[14,2,14,23],[27,6,28,23],[27,0,28,5]]}
["別添２"]
[]
["個人情報の取扱いに関する同意書"]
[]
[]
[]
["１．",null,"個人情報の利用"]
[null,null,"　農林水産省本省及び地方農政局（北海道にあっては北海道農政事務所、沖縄県にあっては内閣府沖縄総合事務局をいう。以下同じ。）及び本事業実施者は、国産飼料生産・利用拡大緊急対策事業の補助金を交付するために、事業参加申込者から提供された個人情報を「行政機関の保有する個人情報の保護に関する法律（平成15 年法律第58号）」その他関係法令に基づき適正に管理し、本事業に係る補助金の交付事務のために利用します。"]
[]
[]
[]
["２．",null,"個人情報の第三者提供"]
["（１）",null,"　農林水産省本省及び地方農政局及び本事業実施者は、事業参加申込内容を確認するため、事業参加者の関係する地方自治体等に、必要最小限の参加申込内容を提供します。"]
[]
["（２）",null,"　農林水産省本省及び地方農政局は、優先採択を希望する事業参加者が条件を満たすかどうか、本事業実施者の求めに応じて情報提供を行います。"]
["（３）",null,"　農林水産本省及び地方農政局及び本事業実施者は、本事業の補助金交付後の取組確認等を実施するため、事業参加者から提供された参加申込内容及び交付申請内容を、取組確認や現地確認等を実施する事業者に提供します。"]
[]
[]
[]
[]
["　私は、個人情報の取扱いについて、上記の事項を確認の上、同意いたします。"]
[]
[]
["令和８年",null,null,null,null,"月",null,null,"日"]
[]
["（署名もしくは記名押印）"]
[]
["飼料生産組織名："]
[]
[]
["代表者氏名　　："]